[Event "WYCC 2018 O16"]
[Site "Halkidiki"]
[Date "2018.10.21"]
[Round "3"]
[White "Shubin, Kirill"]
[Black "Loiacono, Leonardo"]
[Result "1/2-1/2"]
[ECO "C54"]
[WhiteElo "2369"]
[BlackElo "2277"]
[Annotator "NA"]
[PlyCount "70"]
[EventDate "2018.10.20"]
[EventType "swiss"]
[EventCountry "GRE"]
[SourceTitle "playchess.com"]
[Source "ChessBase"]
[SourceQuality "1"]
[TimeControl "40/5400+30:1800+30"]

1. e4 {[%emt 0:00:00]} e5 {[%emt 0:00:00]} 2. Nf3 {[%emt 0:00:00]} Nc6 {[%emt 0:00:00]} 3. Bc4 {[%emt 0:00:00]} Bc5 {[%emt 0:00:00]} 4. c3 {[%emt 0:00:00]} Nf6 {[%emt 0:00:00]} 5. d4 {[%emt 0:00:00]} exd4 {[%emt 0:00:00]} 6. e5 {[%emt 0:00:00]} d5 {[%emt 0:00:06]} 7. Bb5 {[%emt 0:00:00]} Ne4 {[%emt 0:00:07]} 8. cxd4 {[%emt 0:00:00]} Bb6 {[%emt 0:00:05]} 9. Nc3 {[%emt 0:00:03]} O-O {[%emt 0:02:06]} 10. Be3 {[%emt 0:00:25] C54: Giuoco Piano: 4 c3 Nf6, main lines with 5 d4 and 5 d3} Nxc3 {[%emt 0:01:58]} 11. bxc3 {[%emt 0:00:18]} Ne7 {[%emt 0:02:59]} 12. Bd3 {[%emt 0:02:23]} Bf5 {[%emt 0:03:05]} 13. a4 $146 {[%emt 0:00:42]} ({Predecessor:} 13. Bxf5 Nxf5 14. Qd3 Qd7 15. Ng5 g6 16. Bf4 c6 17. Qh3 h5 {½-½ (60) Bartel,M (2609)-Malakhov,V (2722) Warsaw 2010}) 13... Ba5 {[%emt 0:02:58]} 14. Qc2 {[%emt 0:00:20]} Qd7 {[%emt 0:01:03]} 15. O-O {[%emt 0:00:10]} c6 {[%emt 0:04:31]} 16. Nh4 {[%emt 0:12:53]} Bxd3 {[%emt 0:02:23]} 17. Qxd3 {[%emt 0:00:04]} Qg4 {[%emt 0:06:09]} 18. g3 {[%emt 0:00:28]} Qe4 {[%emt 0:00:11]} 19. Qd2 {[%emt 0:23:16]} Nf5 {[%emt 0:00:46]} 20. Ng2 {[%emt 0:00:04]} Nxe3 {[%emt 0:01:30]} 21. fxe3 $11 {[%emt 0:02:10]} Qg6 {[%emt 0:03:52]} 22. Nf4 {[%emt 0:07:40]} Qh6 {[%emt 0:05:24]} 23. Rab1 {[%emt 0:00:12]} Rab8 {[%emt 0:01:04]} 24. Qd3 {[%emt 0:12:53]} g5 {[%emt 0:07:24]} 25. Ne2 {[%emt 0:00:44]} Qg6 {[%emt 0:00:36]} 26. Rf5 {[%emt 0:01:14]} f6 {[%emt 0:00:20]} 27. g4 {[%emt 0:01:05]} fxe5 {[%emt 0:05:51]} 28. dxe5 {[%emt 0:00:14]} Bc7 {[%emt 0:01:59]} 29. Rbf1 {[%emt 0:09:45]} Bxe5 {[%emt 0:03:12]} 30. e4 {[%emt 0:00:15]} Bf4 {[%emt 0:08:51]} 31. Nxf4 {[%emt 0:02:04]} gxf4 {[%emt 0:00:05]} 32. R1xf4 {[%emt 0:00:10]} dxe4 {[%emt 0:11:35]} 33. Qc4+ {[%emt 0:10:16]} Kg7 {[%emt 0:00:07]} 34. Qxe4 {[%emt 0:02:51]} Rxf5 {[%emt 0:00:29]} 35. Rxf5 {[%emt 0:00:17]} Re8 {[%emt 0:03:42]} 1/2-1/2

[Event "WYCC 2018 O16"]
[Site "Halkidiki"]
[Date "2018.10.21"]
[Round "3"]
[White "Kalavannan, Koby"]
[Black "Ongut, Tamas Gunes"]
[Result "1/2-1/2"]
[ECO "D11"]
[WhiteElo "2365"]
[BlackElo "2185"]
[Annotator "NA"]
[PlyCount "41"]
[EventDate "2018.10.20"]
[EventType "swiss"]
[EventCountry "GRE"]
[SourceTitle "playchess.com"]
[Source "ChessBase"]
[SourceQuality "1"]
[TimeControl "40/5400+30:1800+30"]

1. d4 {[%emt 0:00:00]} d5 {[%emt 0:00:36]} 2. c4 {[%emt 0:00:00]} c6 {[%emt 0:00:25]} 3. Nf3 {[%emt 0:00:00]} Nf6 {[%emt 0:00:27]} 4. Qb3 {[%emt 0:00:10]} dxc4 {[%emt 0:00:08]} 5. Qxc4 {[%emt 0:00:02]} Bg4 {[%emt 0:00:08]} 6. Qb3 {[%emt 0:00:14]} Qb6 {[%emt 0:00:02]} 7. Nbd2 {[%emt 0:07:03]} Nbd7 {[%emt 0:00:02]} 8. g3 {[%emt 0:02:36]} Qxb3 {[%emt 0:00:12]} 9. axb3 {[%emt 0:01:27]} e6 {[%emt 0:04:40]} 10. Bg2 {[%emt 0:00:26]} Nd5 {[%emt 0:09:32]} 11. O-O {[%emt 0:03:11]} Be7 {[%emt 0:02:13]} 12. Nc4 {[%emt 0:04:45]} Bxf3 {[%emt 0:03:37]} 13. Bxf3 {[%emt 0:00:12]} a6 {[%emt 0:00:25]} 14. e4 {[%emt 0:04:09]} Nc7 {[%emt 0:01:11]} 15. Bf4 {[%emt 0:04:34]} O-O-O {[%emt 0:01:12]} 16. Rfd1 {[%emt 0:04:32]} g5 $14 {[%emt 0:06:03]} 17. Bd6 {[%emt 0:08:28]} Bxd6 {[%emt 0:10:41]} 18. Nxd6+ {[%emt 0:00:02]} Kb8 {[%emt 0:00:01]} 19. Rac1 {[%emt 0:20:18]} Rdf8 {[%emt 0:04:28]} 20. Rc3 {[%emt 0:12:40]} Nb6 {[%emt 0:09:07]} 21. Nc4 {[%emt 0:06:10]} 1/2-1/2

[Event "WYCC 2018 O16"]
[Site "Halkidiki"]
[Date "2018.10.21"]
[Round "3"]
[White "Wachinger, Nikolas"]
[Black "Thilakarathne, G M H"]
[Result "0-1"]
[ECO "B40"]
[WhiteElo "2360"]
[BlackElo "2268"]
[Annotator "NA"]
[PlyCount "120"]
[EventDate "2018.10.20"]
[EventType "swiss"]
[EventCountry "GRE"]
[SourceTitle "playchess.com"]
[Source "ChessBase"]
[SourceQuality "1"]
[TimeControl "40/5400+30:1800+30"]

1. e4 {[%emt 0:00:00]} c5 {[%emt 0:00:00]} 2. Nf3 {[%emt 0:00:00]} e6 {[%emt 0:00:00]} 3. g3 {[%emt 0:00:04]} Nc6 {[%emt 0:01:14]} 4. Bg2 {[%emt 0:00:08]} Nf6 {[%emt 0:00:30]} 5. Qe2 {[%emt 0:00:08]} d5 {[%emt 0:06:05]} 6. exd5 {[%emt 0:00:08]} Nxd5 {[%emt 0:00:09]} 7. O-O {[%emt 0:00:08]} Be7 {[%emt 0:01:51]} 8. Rd1 {[%emt 0:00:07]} Nd4 {[%emt 0:17:09]} 9. Nxd4 {[%emt 0:01:04]} cxd4 {[%emt 0:00:05]} 10. c4 {[%emt 0:06:26]} Nc7 {[%emt 0:12:01]} 11. d3 {[%emt 0:00:37]} O-O {[%emt 0:04:19]} 12. Nd2 {[%emt 0:07:11]} Re8 {[%emt 0:06:18]} 13. f4 {[%emt 0:01:24]} Rb8 {[%emt 0:18:15]} 14. Nf3 {[%emt 0:01:46]} Bf6 {[%emt 0:03:45]} 15. b4 $14 {[%emt 0:03:23]} b5 {[%emt 0:02:59]} 16. c5 {[%emt 0:04:42]} Bb7 {[%emt 0:03:11]} 17. Bd2 {[%emt 0:07:57]} Nd5 {[%emt 0:07:20]} 18. Ne5 {[%emt 0:00:50]} Qc7 {[%emt 0:08:47]} 19. Re1 {[%emt 0:04:46]} Bxe5 {[%emt 0:01:02]} 20. Qxe5 {[%emt 0:00:10]} Qxe5 {[%emt 0:00:42]} 21. Rxe5 {[%emt 0:00:04]} Ne7 {[%emt 0:00:32]} 22. a4 {[%emt 0:14:02]} Bxg2 {[%emt 0:00:22]} 23. Kxg2 {[%emt 0:00:03]} Nc6 {[%emt 0:00:15]} 24. Ree1 {[%emt 0:00:15]} Kf8 {[%emt 0:00:32]} 25. Kf3 {[%emt 0:00:56]} Rb7 {[%emt 0:03:06]} 26. Reb1 {[%emt 0:04:00]} Ke7 {[%emt 0:01:07]} 27. Ke2 {[%emt 0:02:00]} Reb8 {[%emt 0:00:33]} 28. Kd1 {[%emt 0:01:18]} bxa4 {[%emt 0:00:29]} 29. Rxa4 {[%emt 0:00:03]} a5 {[%emt 0:00:09]} 30. Kc2 {[%emt 0:00:33]} axb4 {[%emt 0:01:06]} 31. Kb3 {[%emt 0:00:22]} Rb5 {[%emt 0:00:32]} 32. Rc1 {[%emt 0:00:34]} Ra5 {[%emt 0:00:44]} 33. Rxa5 {[%emt 0:02:44]} Nxa5+ {[%emt 0:00:01]} 34. Ka4 {[%emt 0:00:01]} Nc6 {[%emt 0:00:14]} 35. Rb1 {[%emt 0:01:02]} Kd7 {[%emt 0:01:00]} 36. Bxb4 {[%emt 0:01:31]} f6 {[%emt 0:00:39]} 37. Rb2 {[%emt 0:00:28]} e5 {[%emt 0:00:30]} 38. Ba3 {[%emt 0:00:57]} Ra8+ {[%emt 0:00:46]} 39. Kb3 {[%emt 0:00:02]} Ke6 {[%emt 0:00:11]} 40. Ka2 {[%emt 0:00:00]} Kd5 {[%emt 0:00:00]} 41. Rb7 {[%emt 0:10:54]} Ra7 {[%emt 0:00:46]} 42. Rxa7 {[%emt 0:01:25]} Nxa7 {[%emt 0:00:12]} 43. fxe5 {[%emt 0:00:05]} fxe5 {[%emt 0:02:01]} 44. Kb3 {[%emt 0:00:42]} Nb5 {[%emt 0:01:53]} 45. Bb4 {[%emt 0:00:11]} Nc7 {[%emt 0:01:21]} 46. Ka4 {[%emt 0:00:14]} Kc6 {[%emt 0:01:12]} 47. Kb3 {[%emt 0:04:10]} Kb5 {[%emt 0:03:24]} 48. Ba3 {[%emt 0:01:52]} g6 {[%emt 0:01:38]} 49. Kc2 {[%emt 0:01:54]} Ne6 {[%emt 0:00:17]} 50. Kd2 {[%emt 0:00:15]} Ka4 {[%emt 0:02:43]} 51. Bc1 {[%emt 0:00:18]} Nxc5 {[%emt 0:00:07]} 52. Kc2 {[%emt 0:01:10]} Kb5 {[%emt 0:00:44]} 53. Bg5 {[%emt 0:02:54]} Kc6 {[%emt 0:00:11]} 54. Be7 {[%emt 0:00:59]} Kd5 {[%emt 0:00:05]} 55. Kd2 {[%emt 0:00:16]} e4 {[%emt 0:01:03]} 56. dxe4+ {[%emt 0:00:10]} Nxe4+ {[%emt 0:00:05]} 57. Kd3 {[%emt 0:00:26]} Nf2+ {[%emt 0:00:15]} 58. Ke2 {[%emt 0:00:22]} Ng4 {[%emt 0:00:08]} 59. Kf3 {[%emt 0:03:37]} Nxh2+ {[%emt 0:01:08]} 60. Kf4 {[%emt 0:00:03]} Nf1 {[%emt 0:00:30]} 0-1

[Event "WYCC 2018 O16"]
[Site "Halkidiki"]
[Date "2018.10.21"]
[Round "3"]
[White "Guerra Rivera, Salvador"]
[Black "Fossan, Aleksander"]
[Result "1-0"]
[ECO "B35"]
[WhiteElo "2340"]
[BlackElo "2173"]
[Annotator "NA"]
[PlyCount "69"]
[EventDate "2018.10.20"]
[EventType "swiss"]
[EventCountry "GRE"]
[SourceTitle "playchess.com"]
[Source "ChessBase"]
[SourceQuality "1"]
[TimeControl "40/5400+30:1800+30"]

1. Nf3 {[%emt 0:00:00]} c5 {[%emt 0:00:03]} 2. e4 {[%emt 0:00:00]} g6 {[%emt 0:00:08]} 3. d4 {[%emt 0:00:07]} cxd4 {[%emt 0:00:09]} 4. Nxd4 {[%emt 0:00:20]} Bg7 {[%emt 0:00:15]} 5. Nc3 {[%emt 0:00:26]} Nc6 {[%emt 0:00:18]} 6. Be3 {[%emt 0:00:10]} Nf6 {[%emt 0:00:31]} 7. Bc4 {[%emt 0:00:20]} O-O {[%emt 0:00:35]} 8. Bb3 {[%emt 0:00:16]} a5 {[%emt 0:04:23]} 9. O-O {[%emt 0:00:35]} a4 {[%emt 0:00:06]} 10. Nxa4 {[%emt 0:00:15]} Nxe4 {[%emt 0:00:33]} 11. Nb5 {[%emt 0:00:18]} d5 {[%emt 0:06:24]} 12. Bb6 {[%emt 0:00:23]} Qd7 {[%emt 0:00:13]} 13. Qe2 {[%emt 0:00:35]} Na5 {[%emt 0:14:06]} 14. Nc7 {[%emt 0:17:12]} Nxb3 {[%emt 0:01:52]} 15. axb3 {[%emt 0:00:07]} Rb8 {[%emt 0:09:30]} 16. c4 {[%emt 0:03:49]} Nf6 $16 {[%emt 0:09:06]} 17. Rfd1 {[%emt 0:02:27]} Qd6 {[%emt 0:06:56]} 18. Nxd5 {[%emt 0:04:55]} Nxd5 {[%emt 0:00:19]} 19. Rxd5 {[%emt 0:00:09]} Qe6 {[%emt 0:02:22]} 20. Qd2 {[%emt 0:03:03]} Qg4 {[%emt 0:04:41]} 21. h3 {[%emt 0:02:50]} Qh4 {[%emt 0:00:46]} 22. Ba7 {[%emt 0:01:46]} Ra8 {[%emt 0:02:17]} 23. Nb6 {[%emt 0:00:14]} Be6 {[%emt 0:00:24]} 24. Nxa8 {[%emt 0:00:16]} Bxd5 {[%emt 0:02:52]} 25. Qxd5 {[%emt 0:00:33]} Rxa8 {[%emt 0:00:09]} 26. Qxb7 {[%emt 0:00:13]} Rf8 {[%emt 0:04:49]} 27. Be3 {[%emt 0:02:45]} Bxb2 {[%emt 0:01:02]} 28. Rd1 {[%emt 0:00:15]} Qh5 {[%emt 0:02:41]} 29. Rd5 {[%emt 0:01:31]} Qe2 {[%emt 0:01:18]} 30. Qxe7 {[%emt 0:00:36]} Qe1+ {[%emt 0:01:54]} 31. Kh2 {[%emt 0:00:08]} Bc1 {[%emt 0:01:34]} 32. Rd8 {[%emt 0:00:31]} Rxd8 {[%emt 0:00:10]} 33. Qxd8+ {[%emt 0:00:03]} Kg7 {[%emt 0:00:08]} 34. Bd4+ {[%emt 0:00:07]} f6 {[%emt 0:00:13]} 35. Qxf6+ {[%emt 0:00:09]} 1-0

[Event "WYCC 2018 O16"]
[Site "Halkidiki"]
[Date "2018.10.21"]
[Round "3"]
[White "Morgunov, Daniel"]
[Black "Beukes, Dante M"]
[Result "1-0"]
[ECO "B38"]
[WhiteElo "2328"]
[BlackElo "2155"]
[Annotator "NA"]
[PlyCount "95"]
[EventDate "2018.10.20"]
[EventType "swiss"]
[EventCountry "GRE"]
[SourceTitle "playchess.com"]
[Source "ChessBase"]
[SourceQuality "1"]
[TimeControl "40/5400+30:1800+30"]

1. e4 {[%emt 0:00:00]} c5 {[%emt 0:00:00]} 2. Nf3 {[%emt 0:00:00]} Nc6 {[%emt 0:00:00]} 3. d4 {[%emt 0:00:00]} cxd4 {[%emt 0:00:00]} 4. Nxd4 {[%emt 0:00:00]} g6 {[%emt 0:00:00]} 5. c4 {[%emt 0:00:00]} Bg7 {[%emt 0:00:00]} 6. Be3 {[%emt 0:00:00]} Nf6 {[%emt 0:00:00]} 7. Nc3 {[%emt 0:00:00]} O-O {[%emt 0:00:08]} 8. Be2 {[%emt 0:01:33]} d6 {[%emt 0:00:05]} 9. Qd2 {[%emt 0:00:41]} Bd7 {[%emt 0:00:15]} 10. O-O {[%emt 0:00:17]} Nxd4 {[%emt 0:00:07]} 11. Bxd4 {[%emt 0:00:04]} Bc6 {[%emt 0:00:05]} 12. Bd3 {[%emt 0:00:32]} a5 {[%emt 0:00:10]} 13. Rae1 {[%emt 0:00:26] B38: Sizilianisch (Maroczy-Aufbau)} a4 {[%emt 0:01:36]} 14. f4 {[%emt 0:00:42]} e5 {[%emt 0:00:52]} 15. fxe5 {[%emt 0:10:14]} Ng4 {[%emt 0:00:21]} 16. h3 $146 {[%emt 0:20:20]} ({Vorgänger:} 16. Nd5 Bxd5 17. cxd5 Nxe5 18. Be2 Qh4 19. Bb5 a3 20. b3 Rac8 {0-1 (55) Kobese,W (2370)-Mamedov,R (2660) Khanty-Mansiysk 2010}) 16... Bxe5 {[%emt 0:13:05]} 17. Be2 {[%emt 0:05:18]} Bxd4+ {[%emt 0:01:10]} 18. Qxd4 {[%emt 0:00:09]} Ne5 {[%emt 0:00:26]} 19. Rd1 {[%emt 0:03:33]} Qg5 {[%emt 0:06:35]} 20. Qd2 {[%emt 0:07:09]} Qg3 {[%emt 0:16:02]} 21. Qxd6 {[%emt 0:01:24] [#]} Rfd8 $11 {[%emt 0:01:21]} 22. Qc5 {[%emt 0:12:16]} Rxd1 {[%emt 0:03:05]} 23. Rxd1 {[%emt 0:00:16]} a3 {[%emt 0:00:41]} 24. Qf2 {[%emt 0:20:20]} Qxf2+ {[%emt 0:00:29]} 25. Kxf2 {[%emt 0:00:04]} axb2 {[%emt 0:00:11]} 26. Ke3 {[%emt 0:01:24]} Ra3 {[%emt 0:23:22]} 27. Kd4 {[%emt 0:01:22]} Ba4 {[%emt 0:02:01]} 28. Rb1 {[%emt 0:06:00]} Nc6+ {[%emt 0:06:16]} 29. Kd3 {[%emt 0:00:23]} b5 {[%emt 0:05:06]} 30. Kd2 {[%emt 0:01:58]} b4 {[%emt 0:01:58]} 31. Nxa4 {[%emt 0:00:29]} Rxa4 {[%emt 0:00:08]} 32. Rxb2 {[%emt 0:00:06]} Kf8 {[%emt 0:01:57]} 33. Bd1 {[%emt 0:01:16]} Ra5 {[%emt 0:01:31]} 34. Ke3 {[%emt 0:01:16]} Ra3+ {[%emt 0:02:05]} 35. Bb3 {[%emt 0:00:53]} Ke7 {[%emt 0:00:16]} 36. Rd2 {[%emt 0:00:43]} Na5 {[%emt 0:00:47]} 37. Rd3 {[%emt 0:00:10]} Nxb3 {[%emt 0:04:13]} 38. axb3 {[%emt 0:00:16]} Ra2 {[%emt 0:00:15]} 39. Rd2 {[%emt 0:00:35]} Ra3 {[%emt 0:00:05]} 40. Rd3 {[%emt 0:00:00]} Ra2 {[%emt 0:00:00]} 41. Rd2 {[%emt 0:09:52]} Ra3 {[%emt 0:00:28]} 42. Rb2 {[%emt 0:00:04]} Kd6 {[%emt 0:07:53]} 43. Kd4 {[%emt 0:00:11]} Ra5 {[%emt 0:05:20]} 44. Rc2 {[%emt 0:02:27]} f6 {[%emt 0:07:06]} 45. Rf2 {[%emt 0:02:55]} f5 {[%emt 0:00:32]} 46. exf5 {[%emt 0:00:20]} gxf5 {[%emt 0:00:07]} 47. Re2 {[%emt 0:00:40]} f4 {[%emt 0:03:05]} 48. Rf2 {[%emt 0:03:08] Kd5+ Ke4+} 1-0

[Event "WYCC 2018 O16"]
[Site "Halkidiki"]
[Date "2018.10.21"]
[Round "3"]
[White "Golikov, Daniil"]
[Black "Vatsal Singhania"]
[Result "1-0"]
[ECO "D31"]
[WhiteElo "2319"]
[BlackElo "2128"]
[Annotator "NA"]
[PlyCount "85"]
[EventDate "2018.10.20"]
[EventType "swiss"]
[EventCountry "GRE"]
[SourceTitle "playchess.com"]
[Source "ChessBase"]
[SourceQuality "1"]
[TimeControl "40/5400+30:1800+30"]

1. d4 {[%emt 0:00:00]} d5 {[%emt 0:00:00]} 2. c4 {[%emt 0:00:00]} e6 {[%emt 0:00:00]} 3. Nc3 {[%emt 0:00:00]} Be7 {[%emt 0:00:00]} 4. cxd5 {[%emt 0:00:44]} exd5 {[%emt 0:00:00]} 5. Bf4 {[%emt 0:00:52]} c6 {[%emt 0:00:01]} 6. e3 {[%emt 0:00:18]} Bf5 {[%emt 0:00:07]} 7. g4 {[%emt 0:00:42]} Be6 {[%emt 0:02:12]} 8. h4 {[%emt 0:00:33]} Bxh4 {[%emt 0:01:41]} 9. Qb3 {[%emt 0:00:05]} g5 {[%emt 0:00:14]} 10. Be5 {[%emt 0:00:11]} f6 {[%emt 0:00:06]} 11. Bh2 {[%emt 0:00:03]} Bxg4 {[%emt 0:00:06]} 12. Qxb7 {[%emt 0:02:07]} Qe7 {[%emt 0:00:05]} 13. Qxe7+ {[%emt 0:20:50]} Nxe7 {[%emt 0:00:07]} 14. Be2 {[%emt 0:00:05]} h5 {[%emt 0:01:38]} 15. Nf3 {[%emt 0:01:32]} Bxf3 {[%emt 0:02:17]} 16. Bxf3 {[%emt 0:00:01]} g4 {[%emt 0:00:10]} 17. Bxb8 {[%emt 0:01:52]} Rxb8 {[%emt 0:02:15]} 18. Be2 {[%emt 0:05:30]} Nf5 $17 {[%emt 0:14:48]} 19. Kf1 {[%emt 0:01:51]} Bg5 {[%emt 0:00:18]} 20. Bxg4 {[%emt 0:01:03]} Ng7 {[%emt 0:00:06]} 21. Bd1 {[%emt 0:02:13]} Rxb2 {[%emt 0:05:07]} 22. Bb3 {[%emt 0:02:22]} Bxe3 {[%emt 0:08:57]} 23. fxe3 {[%emt 0:04:22]} Nf5 {[%emt 0:00:07]} 24. Rh3 {[%emt 0:00:34]} Rg8 {[%emt 0:00:44]} 25. Ne2 {[%emt 0:00:05]} Nd6 {[%emt 0:05:37]} 26. Rc1 {[%emt 0:10:13]} Ne4 {[%emt 0:04:07]} 27. Rxc6 {[%emt 0:02:07]} Nd2+ {[%emt 0:03:05]} 28. Ke1 {[%emt 0:00:03]} Nxb3 {[%emt 0:00:53]} 29. Rc8+ {[%emt 0:00:22]} Kf7 {[%emt 0:00:41]} 30. Rxg8 {[%emt 0:00:02]} Kxg8 {[%emt 0:00:56]} 31. axb3 {[%emt 0:00:01]} Rxb3 {[%emt 0:00:08]} 32. Kf2 {[%emt 0:00:09]} a5 {[%emt 0:00:40]} 33. Rxh5 {[%emt 0:00:02]} a4 {[%emt 0:00:16]} 34. Rxd5 {[%emt 0:00:08]} a3 {[%emt 0:00:04]} 35. Ra5 {[%emt 0:00:04]} Kf7 {[%emt 0:00:09]} 36. Kf3 {[%emt 0:00:18]} Ke7 {[%emt 0:00:43]} 37. Ra6 {[%emt 0:00:38]} f5 {[%emt 0:00:14]} 38. Ng3 {[%emt 0:00:14]} Kd7 {[%emt 0:00:08]} 39. Nxf5 {[%emt 0:00:06]} Kc7 {[%emt 0:00:08]} 40. d5 {[%emt 0:00:00]} Kb7 {[%emt 0:00:00]} 41. Ra4 {[%emt 0:00:16]} Kb6 {[%emt 0:00:50]} 42. Nd4 {[%emt 0:00:09]} Rc3 {[%emt 0:00:44]} 43. d6 1-0

[Event "WYCC 2018 O16"]
[Site "Halkidiki"]
[Date "2018.10.21"]
[Round "3"]
[White "Sahidi, Samir"]
[Black "Fernandez Garcia, Gumersindo"]
[Result "1-0"]
[ECO "E91"]
[WhiteElo "2315"]
[BlackElo "2065"]
[Annotator "NA"]
[PlyCount "97"]
[EventDate "2018.10.20"]
[EventType "swiss"]
[EventCountry "GRE"]
[SourceTitle "playchess.com"]
[Source "ChessBase"]
[SourceQuality "1"]
[TimeControl "40/5400+30:1800+30"]

1. Nf3 {[%emt 0:00:00]} Nf6 {[%emt 0:00:45]} 2. d4 {[%emt 0:01:04]} g6 {[%emt 0:00:28]} 3. c4 {[%emt 0:00:40]} Bg7 {[%emt 0:00:14]} 4. Nc3 {[%emt 0:01:31]} O-O {[%emt 0:00:12]} 5. e4 {[%emt 0:01:19]} d6 {[%emt 0:01:29]} 6. Be2 {[%emt 0:01:10]} Nbd7 {[%emt 0:00:19]} 7. e5 {[%emt 0:05:37]} dxe5 {[%emt 0:04:54]} 8. dxe5 {[%emt 0:00:35]} Ng4 {[%emt 0:00:43] LiveBook: 28 Games} 9. e6 {[%emt 0:00:25] E91: King's Indian: Classical: 6 Be2, unusual replies including 6...c5 and 6...Bg4} fxe6 {[%emt 0:00:15]} 10. h3 {[%emt 0:04:31]} (10. O-O Nc5 11. h3 Bxc3 12. bxc3 Qxd1 13. Rxd1 Nf6 14. Bh6 Re8 15. Bf4 c6 16. Ne5 b6 17. Nxc6 Bb7 18. Nd4 {½-½ (34) Kristiansen,J (2423)-Jones,G (2647) Helsingor 2015}) 10... Nge5 {[%emt 0:07:55]} 11. Nxe5 {[%emt 0:01:54]} Nxe5 {[%emt 0:00:59]} 12. Be3 {[%emt 0:03:15]} c6 $146 {[%emt 0:08:35]} ({Predecessor:} 12... Nc6 13. O-O Nd4 14. Rc1 e5 15. c5 Kh8 16. Qd2 Be6 {0-1 (64) Gurevich,D (2545)-Mestel,A (2540) Hastings 1984}) 13. Qc2 {[%emt 0:01:10]} Qc7 {[%emt 0:01:10]} 14. Ne4 {[%emt 0:02:57]} Nd7 {[%emt 0:08:35]} 15. O-O Nf6 {[%emt 0:04:04]} 16. Ng3 {[%emt 0:03:24]} b6 {[%emt 0:03:47]} 17. Bf3 {[%emt 0:03:17]} Bb7 {[%emt 0:02:40]} 18. Rfe1 {[%emt 0:03:23]} e5 {[%emt 0:09:40]} 19. Bd2 {[%emt 0:01:55]} Nd7 {[%emt 0:02:13]} 20. Be4 {[%emt 0:00:45]} Nc5 $11 {[%emt 0:02:02]} 21. h4 {[%emt 0:03:41]} Rad8 {[%emt 0:07:03]} 22. Rad1 {[%emt 0:06:33]} Nxe4 {[%emt 0:02:47]} 23. Nxe4 {[%emt 0:00:23]} c5 {[%emt 0:01:27]} 24. Be3 {[%emt 0:03:41]} Qc6 {[%emt 0:02:41]} 25. f3 {[%emt 0:00:11]} Bf6 {[%emt 0:07:22]} 26. Bf2 {[%emt 0:07:28]} Qc8 {[%emt 0:04:49]} 27. a3 {[%emt 0:03:05]} Rxd1 {[%emt 0:01:22]} 28. Rxd1 {[%emt 0:01:31]} Rd8 {[%emt 0:00:17]} 29. Rxd8+ {[%emt 0:05:14]} Qxd8 {[%emt 0:00:04]} 30. b4 {[%emt 0:00:11]} cxb4 {[%emt 0:02:07]} 31. axb4 {[%emt 0:01:34]} Qc7 {[%emt 0:05:55]} 32. c5 {[%emt 0:01:16]} bxc5 {[%emt 0:00:54]} 33. Qc4+ {[%emt 0:00:58]} Kh8 {[%emt 0:00:58]} 34. Qf7 {[%emt 0:01:24]} Qd8 {[%emt 0:00:54]} 35. Nxf6 {[%emt 0:00:33]} exf6 {[%emt 0:00:42]} 36. Qxb7 {[%emt 0:00:12]} cxb4 {[%emt 0:01:00]} 37. Qxb4 {[%emt 0:01:26]} a5 {[%emt 0:00:42]} 38. Qa4 {[%emt 0:01:15]} f5 {[%emt 0:04:45]} 39. Be1 {[%emt 0:01:50]} Qb6+ {[%emt 0:00:50]} 40. Kh2 {[%emt 0:00:00]} Qd6 {[%emt 0:00:00]} 41. Bc3 {[%emt 0:01:23]} Qe7 {[%emt 0:01:18]} 42. Qf4 {[%emt 0:00:47]} a4 {[%emt 0:01:18]} 43. Bxe5+ {[%emt 0:00:16]} Kg8 {[%emt 0:00:07]} 44. Qd4 {[%emt 0:01:36]} h6 {[%emt 0:02:39]} 45. Bd6 {[%emt 0:02:14]} Qd7 {[%emt 0:01:13]} 46. Qf6 {[%emt 0:00:30]} Qf7 {[%emt 0:00:30]} 47. Qxf7+ {[%emt 0:00:30]} Kxf7 {[%emt 0:00:30]} 48. Kg3 {[%emt 0:00:30]} Kf6 {[%emt 0:00:30]} 49. Bf8 {[%emt 0:00:30]} 1-0

[Event "WYCC 2018 O16"]
[Site "Halkidiki"]
[Date "2018.10.21"]
[Round "3"]
[White "Mis, Mieszko"]
[Black "Kim, Yunseo"]
[Result "1-0"]
[ECO "E67"]
[WhiteElo "2307"]
[BlackElo "1995"]
[Annotator "NA"]
[PlyCount "77"]
[EventDate "2018.10.20"]
[EventType "swiss"]
[EventCountry "GRE"]
[SourceTitle "playchess.com"]
[Source "ChessBase"]
[SourceQuality "1"]
[TimeControl "40/5400+30:1800+30"]

1. d4 {[%emt 0:00:00]} Nf6 {[%emt 0:00:00]} 2. c4 {[%emt 0:00:00]} g6 {[%emt 0:00:00]} 3. g3 {[%emt 0:00:06]} Bg7 {[%emt 0:00:00]} 4. Bg2 {[%emt 0:00:05]} O-O {[%emt 0:00:00]} 5. Nc3 {[%emt 0:00:44]} d6 {[%emt 0:00:03]} 6. Nf3 {[%emt 0:00:08]} Nbd7 {[%emt 0:00:12]} 7. O-O e5 8. h3 {[%emt 0:05:21]} c6 {[%emt 0:02:53]} 9. e4 {[%emt 0:02:11]} exd4 {[%emt 0:00:39]} 10. Nxd4 {[%emt 0:00:27]} Re8 {[%emt 0:00:45]} 11. Re1 {[%emt 0:02:55]} Nc5 {[%emt 0:01:56]} 12. Nb3 {[%emt 0:08:56]} Nxb3 {[%emt 0:15:09]} 13. axb3 {[%emt 0:01:40]} Be6 {[%emt 0:05:29]} 14. Bf4 {[%emt 0:03:16]} Qd7 {[%emt 0:01:56]} 15. Kh2 {[%emt 0:04:37]} Red8 {[%emt 0:01:49]} 16. Qd2 {[%emt 0:03:44]} Ne8 $16 {[%emt 0:18:42]} 17. Be3 {[%emt 0:08:14]} a6 {[%emt 0:02:34]} 18. Na4 {[%emt 0:04:52]} Qe7 {[%emt 0:03:23]} 19. Nb6 {[%emt 0:01:41]} Rab8 {[%emt 0:00:51]} 20. Rad1 {[%emt 0:10:10]} Qc7 {[%emt 0:06:12]} 21. f4 {[%emt 0:02:52]} Nf6 {[%emt 0:07:57]} 22. Qf2 {[%emt 0:02:43]} c5 {[%emt 0:00:51]} 23. Nd5 {[%emt 0:07:41]} Nxd5 {[%emt 0:05:46]} 24. cxd5 {[%emt 0:01:01]} Bd7 {[%emt 0:07:15]} 25. b4 {[%emt 0:01:13]} b6 {[%emt 0:00:44]} 26. e5 {[%emt 0:03:30]} dxe5 {[%emt 0:04:50]} 27. d6 {[%emt 0:03:22]} Qc8 {[%emt 0:00:19]} 28. fxe5 {[%emt 0:00:25]} Bxe5 {[%emt 0:00:52]} 29. Bg5 {[%emt 0:00:35]} Re8 {[%emt 0:02:24]} 30. Bd5 {[%emt 0:08:31]} Bf5 {[%emt 0:02:43]} 31. Be7 {[%emt 0:03:44]} Bd4 {[%emt 0:02:48]} 32. Qf3 {[%emt 0:03:10]} Be6 {[%emt 0:04:49]} 33. Bxe6 {[%emt 0:00:13]} fxe6 {[%emt 0:00:14]} 34. Rf1 {[%emt 0:00:10]} Rxe7 {[%emt 0:01:01]} 35. dxe7 {[%emt 0:00:06]} Qe8 {[%emt 0:00:06]} 36. Rxd4 {[%emt 0:00:35]} cxd4 {[%emt 0:00:13]} 37. Qf6 {[%emt 0:00:01]} h5 {[%emt 0:00:59]} 38. Qxe6+ {[%emt 0:00:12]} Kh7 {[%emt 0:00:17]} 39. Rf8 {[%emt 0:01:26]} 1-0